bitfinex/quotes_BTCUSD_20240820
["timestamp","ask_amount","ask_price","bid_price","bid_amount"]
[1724182932226,0.00468658,59583.0,59582.0,2.6548387]
[1724182932423,0.00468658,59583.0,59582.0,2.6778387]
[1724182933242,0.00468658,59583.0,59582.0,2.6738387]
[1724182933450,0.00468658,59583.0,59582.0,2.82411401]
[1724182933675,0.00468658,59583.0,59582.0,2.82311401]
[1724182933876,0.00468658,59583.0,59582.0,2.83811401]
[1724182934305,0.00468658,59583.0,59582.0,2.16527347]
[1724182934505,0.00468658,59583.0,59582.0,2.16627347]
[1724182934677,0.00468658,59583.0,59582.0,2.17927347]
[1724182935341,0.00468658,59583.0,59582.0,2.15627347]
[1724182935494,1e-08,59585.0,59584.0,1.29191]
[1724182935704,1e-08,59585.0,59584.0,1.76448447]
[1724182936938,1e-08,59585.0,59584.0,1.77848447]
[1724182937628,1e-08,59585.0,59584.0,1.79248447]
[1724182938966,1e-08,59585.0,59584.0,2.12814447]
[1724182943765,1e-08,59585.0,59584.0,2.25448323]
[1724182944581,0.00082201,59585.0,59584.0,2.25448323]
[1724182946497,0.00082201,59585.0,59584.0,2.13738323]
[1724182946707,0.00082201,59585.0,59584.0,2.25448323]
[1724182947946,0.00082201,59585.0,59584.0,2.33738323]
[1724182949572,0.00082201,59585.0,59584.0,2.48744686]
[1724182949790,0.00082201,59585.0,59584.0,3.00896538]
[1724182949993,0.00082201,59585.0,59584.0,2.85890175]
[1724182950373,0.00082201,59585.0,59584.0,3.00896483]
[1724182950577,0.00822,59589.0,59588.0,1.291833]
[1724182950578,1e-08,59589.0,59588.0,1.291833]
[1724182950778,1e-08,59589.0,59588.0,1.76440156]
[1724182950980,1e-08,59589.0,59588.0,1.78941539]
[1724182951203,1e-08,59589.0,59588.0,1.66434623]
[1724182951400,1e-08,59589.0,59588.0,1.76440344]
[1724182951750,1e-08,59589.0,59588.0,1.77840344]
[1724182952504,1e-08,59589.0,59588.0,1.67834623]
[1724182952707,1e-08,59589.0,59588.0,1.77840344]
[1724182952884,1e-08,59589.0,59588.0,1.67834623]
[1724182953492,1e-08,59589.0,59588.0,1.77840344]
[1724182953677,1e-08,59589.0,59588.0,1.67834623]
[1724182953888,0.08630001,59589.0,59588.0,1.75340484]
[1724182954115,0.08630001,59589.0,59588.0,1.76740484]
[1724182955262,0.08630001,59589.0,59588.0,1.69234623]
[1724182955488,0.08630001,59589.0,59588.0,1.76741251]
[1724182956073,0.08630001,59589.0,59588.0,1.69234623]
[1724182958451,0.08630001,59589.0,59588.0,1.81741539]
[1724182958698,0.08630001,59589.0,59588.0,1.69234623]
[1724182959104,0.08630001,59589.0,59588.0,1.81741539]
[1724182959308,0.10186615,59589.0,59588.0,1.69234623]
[1724182959492,0.10186615,59589.0,59588.0,1.81741539]
[1724182959672,0.10186615,59589.0,59588.0,1.69234623]
[1724182959873,0.10186615,59589.0,59588.0,1.79250286]
[1724182960501,0.10186615,59589.0,59588.0,1.81741539]
[1724182961110,0.01556615,59589.0,59588.0,1.69234623]
[1724182961310,1e-08,59589.0,59588.0,1.69334623]
[1724182961568,1e-08,59589.0,59588.0,1.69234623]
[1724182961976,1e-08,59589.0,59588.0,2.99581585]
[1724182962190,1e-08,59589.0,59588.0,2.78317785]
[1724182963020,1e-08,59589.0,59588.0,2.778991]
[1724182963200,1e-08,59589.0,59588.0,2.792991]
[1724182963379,1e-08,59589.0,59588.0,2.778991]
[1724182963576,1e-08,59589.0,59588.0,2.792991]
[1724182964634,1e-08,59589.0,59588.0,2.794991]
[1724182965395,0.0825,59598.0,59597.0,1.174554]
[1724182965565,0.0825,59598.0,59597.0,1.76427345]
[1724182965566,0.09806406,59598.0,59597.0,1.76427345]
[1724182965764,0.20426406,59598.0,59597.0,0.47261945]
[1724182965969,0.20426406,59598.0,59597.0,0.167793]
[1724182966575,0.20426406,59598.0,59597.0,0.51738]
[1724182966778,0.20426406,59598.0,59597.0,0.53138]
[1724182966927,0.20426406,59598.0,59597.0,0.50338]
[1724182967334,0.20426406,59598.0,59597.0,0.51738]
[1724182967883,0.20426406,59598.0,59597.0,0.53138]
[1724182968921,0.20426406,59598.0,59597.0,0.51738]
[1724182969125,0.20426406,59598.0,59597.0,0.195793]
[1724182969333,0.20426406,59598.0,59597.0,0.53138]
[1724182969737,0.20426406,59598.0,59597.0,0.195793]
[1724182970982,0.20426406,59598.0,59597.0,0.53138]
[1724182971705,0.20426406,59598.0,59597.0,0.195793]
[1724182971889,0.20426406,59598.0,59597.0,0.53138]
[1724182972605,0.1887,59598.0,59597.0,0.53138]
[1724182972834,0.20426661,59598.0,59597.0,0.53138]
[1724182973461,0.20426661,59598.0,59597.0,0.866967]
[1724182973696,0.20426661,59598.0,59597.0,0.91702991]
[1724182974506,0.20426661,59598.0,59597.0,0.866967]
[1724182974714,0.20426661,59598.0,59597.0,0.53138]
[1724182975536,0.20426661,59598.0,59597.0,0.97898819]
[1724182976575,0.20426597,59598.0,59597.0,0.97898819]
[1724182976985,0.20426598,59598.0,59597.0,0.97898819]
[1724182980484,0.20426598,59598.0,59597.0,0.60646888]
[1724182981333,0.20426598,59598.0,59597.0,0.60656357]
[1724182981510,0.20426598,59598.0,59597.0,0.53138]
[1724182981917,0.20426598,59598.0,59597.0,0.195793]
[1724182982123,0.20508798,59598.0,59597.0,0.58150336]
[1724182982328,0.20508798,59598.0,59597.0,0.58150369]
[1724182983132,0.2050882,59598.0,59597.0,0.58150369]
[1724182986981,0.189522,59598.0,59597.0,0.58150369]
[1724182987199,0.2050882,59598.0,59597.0,0.53138]
[1724182987505,0.20508813,59598.0,59597.0,0.53138]
[1724182987773,0.20508813,59598.0,59597.0,0.866967]
[1724182987774,0.01638813,59598.0,59597.0,0.866967]
[1724182987994,0.01638813,59598.0,59597.0,1.3397335]
[1724182988381,0.01638813,59598.0,59597.0,1.33970038]
[1724182988583,0.000822,59598.0,59597.0,1.23948874]
[1724182988779,0.000822,59598.0,59597.0,1.70038169]
[1724182988983,0.01638699,59598.0,59597.0,1.70038169]
[1724182989494,0.01638699,59598.0,59597.0,1.57507574]
[1724182990445,0.01638699,59598.0,59597.0,1.70038169]
[1724182990676,0.01638699,59598.0,59597.0,1.70030127]
[1724182990889,0.000822,59598.0,59597.0,1.70030127]
[1724182991033,0.01638669,59598.0,59597.0,1.70030127]
[1724182991240,0.01638669,59598.0,59597.0,1.57504569]
[1724182991435,0.01638669,59598.0,59597.0,1.67984569]
[1724182993688,0.000822,59598.0,59597.0,1.67984569]
[1724182993887,0.000822,59598.0,59597.0,2.35159586]
[1724182994335,0.002462,59602.0,59601.0,0.167782]
[1724182994543,0.01802466,59602.0,59601.0,1.3365814]
[1724182994764,0.002462,59602.0,59601.0,1.3365814]
[1724182994978,0.01802516,59602.0,59601.0,1.21140169]
[1724182995391,0.01802516,59602.0,59601.0,1.3365404]
[1724182995618,0.01802516,59602.0,59601.0,1.34250169]
[1724182995809,0.01802516,59602.0,59601.0,1.87056569]
[1724182995810,0.002462,59602.0,59601.0,1.87056569]
[1724182996018,0.0854,59613.0,59612.0,0.503253]
[1724182996230,0.01556064,59613.0,59612.0,0.69537255]
[1724182996434,0.01556064,59613.0,59612.0,0.99274327]
[1724182996835,0.01556064,59613.0,59612.0,0.95065892]
[1724182997036,0.01556064,59613.0,59612.0,1.32824527]
[1724182997240,0.0059371,59614.0,59613.0,0.167748]
[1724182997447,0.0059371,59614.0,59613.0,1.41857964]
[1724182997658,0.0059371,59614.0,59613.0,1.31863227]
[1724182997863,0.0059371,59614.0,59613.0,1.65412927]
[1724182998285,0.0059371,59614.0,59613.0,1.98962627]
[1724182998499,0.0059371,59614.0,59613.0,2.8982124]
[1724182998715,0.0059371,59614.0,59613.0,2.40284388]
[1724182998938,0.0059371,59614.0,59613.0,1.99866206]
[1724182999202,0.0059371,59614.0,59613.0,2.34815906]
[1724182999453,0.0059371,59614.0,59613.0,2.38183906]
[1724182999700,0.0059371,59614.0,59613.0,2.50560416]
[1724182999937,0.0059371,59614.0,59613.0,2.52140801]
[1724183000179,0.00822,59617.0,59616.0,1.66344]
[1724183000407,0.00822,59617.0,59616.0,2.25024562]
[1724183000643,0.00822,59617.0,59616.0,2.25224562]
[1724183000898,0.00822,59617.0,59616.0,2.25024562]
[1724183001145,0.00822,59617.0,59616.0,2.37486304]
[1724183001411,0.00822,59617.0,59616.0,2.34989544]
[1724183001865,0.00822,59617.0,59616.0,2.25024562]
[1724183002073,0.00822,59617.0,59616.0,2.34989014]
[1724183002284,0.00822,59617.0,59616.0,2.14714562]
[1724183002498,0.00822,59617.0,59616.0,2.22182426]
[1724183002917,0.00822,59617.0,59616.0,1.78884]
[1724183003323,0.00822,59617.0,59616.0,1.8386079]
[1724183004196,0.00822,59617.0,59616.0,1.5031279]
[1724183004400,0.00822,59617.0,59616.0,1.36646]
[1724183004817,0.00822,59617.0,59616.0,1.33278]
[1724183005223,0.00822,59617.0,59616.0,0.028]
[1724183005224,0.20052,59617.0,59616.0,0.028]
[1724183006077,0.20052,59617.0,59616.0,0.014]
[1724183006532,0.20052,59617.0,59616.0,0.028]
[1724183007170,0.20052,59617.0,59616.0,0.19574]
[1724183007577,0.20052,59617.0,59616.0,0.028]
[1724183007578,0.09182,59617.0,59616.0,0.028]
[1724183007783,0.09182,59617.0,59616.0,0.53122]
[1724183008209,0.09182,59617.0,59616.0,1.20318]
[1724183008405,0.00822,59617.0,59616.0,1.20218]
[1724183008612,0.00822,59617.0,59616.0,1.64536]
[1724183008819,0.00822,59617.0,59616.0,1.66636]
[1724183009020,0.00822,59617.0,59616.0,1.33088]
[1724183009431,0.00822,59617.0,59616.0,1.30688]
[1724183010248,0.00822,59617.0,59616.0,1.33088]
[1724183011009,1e-08,59618.0,59617.0,1.174159]
[1724183011210,1e-08,59618.0,59617.0,1.197159]
[1724183011849,0.10320001,59618.0,59617.0,0.503211]
[1724183012068,0.10320001,59618.0,59617.0,0.014]
[1724183012207,0.10320001,59618.0,59617.0,0.181737]
[1724183013214,0.10320001,59618.0,59617.0,0.195737]
[1724183013765,0.10320001,59618.0,59617.0,0.028]
[1724183014168,0.10320001,59618.0,59617.0,0.195737]
[1724183014954,0.10320001,59618.0,59617.0,0.531211]
[1724183015151,0.18850001,59618.0,59617.0,0.531211]
[1724183015357,0.18850001,59618.0,59617.0,0.195737]
[1724183016662,0.18850001,59618.0,59617.0,0.531211]
[1724183018709,0.18850001,59618.0,59617.0,0.195737]
[1724183018958,0.18850001,59618.0,59617.0,0.531211]
[1724183022019,0.08530001,59618.0,59617.0,1.202159]
[1724183023656,0.08530001,59618.0,59617.0,0.531211]
[1724183024387,0.10085821,59618.0,59617.0,0.531211]
[1724183025210,0.10085821,59618.0,59617.0,0.866685]
[1724183025864,0.08530001,59618.0,59617.0,1.202159]
[1724183027770,0.08530001,59618.0,59617.0,0.866685]
[1724183027989,0.08530001,59618.0,59617.0,0.195737]
[1724183028193,0.08530001,59618.0,59617.0,0.531211]
[1724183029667,0.08530001,59618.0,59617.0,0.195737]
[1724183029873,0.20000001,59618.0,59617.0,0.195737]
[1724183030081,0.20000001,59618.0,59617.0,0.028]
[1724183030288,0.20000001,59618.0,59617.0,0.195737]
[1724183030699,0.20000001,59618.0,59617.0,0.531211]
[1724183030876,0.08530001,59618.0,59617.0,0.866685]
[1724183031109,0.08530001,59618.0,59617.0,1.202159]
[1724183031315,0.08530001,59618.0,59617.0,0.866685]
[1724183031941,0.10085776,59618.0,59617.0,0.866685]
[1724183032562,0.10085776,59618.0,59617.0,1.202159]
[1724183032767,0.10085776,59618.0,59617.0,1.2030632]
[1724183032946,0.08612201,59618.0,59617.0,1.2030632]
[1724183033356,0.08612201,59618.0,59617.0,0.8675892]
[1724183035033,0.00082201,59618.0,59617.0,0.8675892]
[1724183036723,0.00082201,59618.0,59617.0,0.5321152]
[1724183038296,0.00082201,59618.0,59617.0,0.1966412]
[1724183038741,0.00082201,59618.0,59617.0,0.0289042]
[1724183039542,0.00082201,59618.0,59617.0,0.1966412]
[1724183039747,0.00082201,59618.0,59617.0,0.24656164]
[1724183039923,0.00082201,59618.0,59617.0,0.58203564]
[1724183040125,0.00082201,59618.0,59617.0,0.91750964]
[1724183040320,0.00082201,59618.0,59617.0,1.31483147]
[1724183040751,0.00082201,59618.0,59617.0,1.65030547]
[1724183041216,0.00082201,59618.0,59617.0,1.67526569]
[1724183041997,0.00082201,59618.0,59617.0,1.67537052]
[1724183043558,0.00082201,59618.0,59617.0,1.33989652]
[1724183044270,0.00082201,59618.0,59617.0,1.67537052]
[1724183045968,0.00082201,59618.0,59617.0,1.76467052]
[1724183046173,0.00082201,59618.0,59617.0,1.87377052]
[1724183047348,0.00082201,59618.0,59617.0,1.77382329]
[1724183048984,1e-08,59618.0,59617.0,1.77382329]
[1724183049685,1e-08,59618.0,59617.0,2.29608071]
[1724183050299,1e-08,59618.0,59617.0,2.29508071]
[1724183050718,1e-08,59618.0,59617.0,2.44464209]
[1724183051353,1e-08,59618.0,59617.0,2.4446734]
[1724183051767,1e-08,59618.0,59617.0,2.44464841]
[1724183052110,1e-08,59618.0,59617.0,2.78304583]
[1724183052345,1e-08,59618.0,59617.0,2.65655471]
[1724183052559,1e-08,59618.0,59617.0,2.77345471]
[1724183053461,1e-08,59618.0,59617.0,2.77145471]
[1724183053637,1e-08,59618.0,59617.0,2.77345471]
[1724183054005,1e-08,59618.0,59617.0,2.77545471]
[1724183054124,1e-08,59618.0,59617.0,2.77145471]
[1724183056382,1e-08,59618.0,59617.0,2.7713345]
[1724183057259,1e-08,59618.0,59617.0,2.7733345]
[1724183057464,1e-08,59618.0,59617.0,2.7713345]
[1724183057675,1e-08,59618.0,59617.0,2.92054311]
[1724183057882,1e-08,59618.0,59617.0,2.92254311]
[1724183058494,1e-08,59618.0,59617.0,2.92054311]
[1724183059114,1e-08,59618.0,59617.0,2.90854311]
[1724183059398,1e-08,59618.0,59617.0,2.90654311]
[1724183059640,1e-08,59618.0,59617.0,2.92054311]
[1724183060019,1e-08,59618.0,59617.0,2.90854311]
[1724183060230,1e-08,59618.0,59617.0,2.23812774]
[1724183060444,1e-08,59618.0,59617.0,2.25212774]
[1724183060766,1e-08,59618.0,59617.0,2.25012774]
[1724183060961,1e-08,59618.0,59617.0,2.25412774]
[1724183061198,1e-08,59618.0,59617.0,2.25014255]
[1724183062539,1e-08,59618.0,59617.0,2.25214255]
[1724183062777,1e-08,59618.0,59617.0,2.25414255]
[1724183063200,1e-08,59618.0,59617.0,2.92259959]
[1724183063352,1e-08,59618.0,59617.0,2.77535939]
[1724183063963,0.00822,59625.0,59624.0,1.174022]
[1724183064151,0.00822,59625.0,59624.0,1.64580169]
[1724183064348,0.00822,59625.0,59624.0,1.64580052]
[1724183064792,0.00822,59625.0,59624.0,1.54632735]
[1724183064988,0.00822,59625.0,59624.0,1.5561553]
[1724183065437,0.00822,59625.0,59624.0,1.66962299]
[1724183065660,0.00822,59625.0,59624.0,1.67722735]
[1724183065830,0.00822,59625.0,59624.0,1.77669262]
[1724183066032,0.00822,59625.0,59624.0,1.77667698]
[1724183067105,0.00822,59625.0,59624.0,1.79067698]
[1724183069180,0.00822,59625.0,59624.0,1.76581801]
[1724183069411,0.00822,59625.0,59624.0,1.79068158]
[1724183069867,0.00822,59625.0,59624.0,1.69121356]
[1724183070282,0.00822,59625.0,59624.0,1.7906795]
[1724183070888,0.00822,59625.0,59624.0,1.81551869]
[1724183071113,0.00822,59625.0,59624.0,1.69119781]
[1724183071536,0.00822,59625.0,59624.0,1.81550353]
[1724183071747,0.00822,59625.0,59624.0,1.80340353]
[1724183071955,0.00822,59625.0,59624.0,2.13443281]
[1724183072211,0.00822,59625.0,59624.0,2.23643281]
[1724183072629,0.00822,59625.0,59624.0,2.27011281]
[1724183072841,0.00822,59625.0,59624.0,2.35421281]
[1724183073247,0.00822,59625.0,59624.0,2.34021281]
[1724183073456,0.00822,59625.0,59624.0,2.35421281]
[1724183073457,0.00801812,59625.0,59624.0,2.35421281]
[1724183073663,0.00801812,59625.0,59624.0,2.46251953]
[1724183074091,0.00801812,59625.0,59624.0,2.44851953]
[1724183074272,0.00801812,59625.0,59624.0,2.46251953]
[1724183074505,0.00801812,59625.0,59624.0,2.47851953]
[1724183074718,0.00801812,59625.0,59624.0,2.35221281]
[1724183074892,0.00801812,59625.0,59624.0,2.4765113]
[1724183075093,0.00801812,59625.0,59624.0,2.33821281]
[1724183075331,0.00801812,59625.0,59624.0,2.35221281]
[1724183075534,0.00801812,59625.0,59624.0,2.47650788]
[1724183075741,0.00801812,59625.0,59624.0,2.47649918]
[1724183077920,0.00801812,59625.0,59624.0,2.47849918]
[1724183078124,0.00801812,59625.0,59624.0,2.47649918]
[1724183078329,0.00801812,59625.0,59624.0,1.80576418]
[1724183078541,0.00801812,59625.0,59624.0,1.79836929]
[1724183079463,0.20961812,59625.0,59624.0,1.79787066]
[1724183079689,0.23057993,59625.0,59624.0,0.504652]
[1724183080289,0.22517403,59625.0,59624.0,0.504652]
[1724183080492,0.22517403,59625.0,59624.0,0.490652]
[1724183080890,0.22517403,59625.0,59624.0,0.504652]
[1724183081090,0.22517403,59625.0,59624.0,0.490652]
[1724183081295,0.22517403,59625.0,59624.0,0.840087]
[1724183081623,0.22517403,59625.0,59624.0,0.490652]
[1724183081752,0.22517403,59625.0,59624.0,0.86275719]
[1724183081954,0.22517403,59625.0,59624.0,0.87675719]
[1724183082162,0.22517403,59625.0,59624.0,0.8269912]
[1724183082404,0.22517403,59625.0,59624.0,0.4915562]
[1724183082405,0.20961812,59625.0,59624.0,0.4915562]
[1724183082716,0.20961812,59625.0,59624.0,0.8269912]
[1724183083139,0.20961812,59625.0,59624.0,0.8409912]
[1724183084280,0.20961812,59625.0,59624.0,0.84087603]
[1724183084480,0.22517445,59625.0,59624.0,0.84087603]
[1724183085458,0.22517445,59625.0,59624.0,0.89067007]
[1724183086523,0.09861812,59625.0,59624.0,1.64822416]
[1724183086935,0.09861812,59625.0,59624.0,1.54863608]
[1724183087137,0.09861812,59625.0,59624.0,1.64822467]
[1724183087816,0.09861812,59625.0,59624.0,1.54863608]
[1724183088221,0.09861812,59625.0,59624.0,1.64822467]
[1724183088427,0.09861812,59625.0,59624.0,1.31278967]
[1724183088660,0.22847366,59625.0,59624.0,0.50544103]
[1724183088863,0.23833547,59625.0,59624.0,0.50544103]
[1724183089075,0.23833547,59625.0,59624.0,0.55525604]
[1724183089276,0.22847366,59625.0,59624.0,0.55525604]
[1724183089476,0.22847366,59625.0,59624.0,0.58015675]
[1724183089610,0.22847366,59625.0,59624.0,0.91559175]
[1724183089811,0.22847366,59625.0,59624.0,1.28790693]
[1724183090047,0.22847366,59625.0,59624.0,1.28790855]
[1724183090262,0.11391995,59625.0,59624.0,1.62334355]
[1724183090463,0.11391995,59625.0,59624.0,1.64821642]
[1724183091455,0.11392002,59625.0,59624.0,1.31278142]
[1724183091704,0.11392002,59625.0,59624.0,1.21319283]
[1724183091925,0.22822002,59625.0,59624.0,1.21319283]
[1724183092069,0.22822028,59625.0,59624.0,1.21319283]
[1724183092416,0.22822028,59625.0,59624.0,1.31278142]
[1724183092740,0.22822028,59625.0,59624.0,1.54862783]
[1724183093128,0.22822028,59625.0,59624.0,1.64821642]
[1724183093329,0.22822028,59625.0,59624.0,1.31278142]
[1724183093632,0.22822028,59625.0,59624.0,0.87775783]
[1724183093842,0.22822028,59625.0,59624.0,0.95256611]
[1724183095280,0.22822028,59625.0,59624.0,1.28800111]
[1724183095495,0.22822061,59625.0,59624.0,1.28800111]
[1724183095900,0.11392061,59625.0,59624.0,1.21319283]
[1724183096272,0.02332061,59625.0,59624.0,1.21319283]
[1724183099503,0.02332061,59625.0,59624.0,1.31278142]
[1724183100589,0.02331996,59625.0,59624.0,1.21319283]
[1724183100798,0.02331996,59625.0,59624.0,1.54862042]
[1724183101015,0.02331996,59625.0,59624.0,1.31286234]
[1724183101232,0.21691996,59625.0,59624.0,1.31286234]
[1724183101495,0.21691996,59625.0,59624.0,1.21318542]
[1724183101719,0.21691996,59625.0,59624.0,1.28795027]
[1724183102561,0.20136441,59625.0,59624.0,1.28795027]
[1724183102816,0.21692054,59625.0,59624.0,1.28795027]
[1724183103031,0.00776441,59625.0,59624.0,1.28795027]
[1724183103239,0.00776441,59625.0,59624.0,1.64829734]
[1724183103423,0.00776441,59625.0,59624.0,1.54862042]
[1724183103655,0.02332001,59625.0,59624.0,1.54862042]
[1724183104907,0.00776441,59625.0,59624.0,2.01495542]
[1724183105120,0.00776441,59625.0,59624.0,1.77952042]
[1724183105386,0.00776441,59625.0,59624.0,1.86472042]
[1724183105603,0.00048107,59632.0,59631.0,0.83849]
[1724183105810,0.00048107,59632.0,59631.0,1.54619539]
[1724183106013,0.01603471,59632.0,59631.0,1.54619539]
[1724183106228,0.00048107,59632.0,59631.0,1.54619539]
[1724183106649,0.01603464,59632.0,59631.0,1.62090902]
[1724183106861,0.01603464,59632.0,59631.0,1.63490902]
[1724183107069,0.01603464,59632.0,59631.0,1.56019539]
[1724183107278,0.01603464,59632.0,59631.0,1.64890766]
[1724183107703,0.01603464,59632.0,59631.0,1.63490766]
[1724183107936,0.01603464,59632.0,59631.0,1.64886687]
[1724183108152,0.01603464,59632.0,59631.0,1.65977067]
[1724183108358,0.01603464,59632.0,59631.0,1.56015545]
[1724183108559,0.01603464,59632.0,59631.0,1.67377067]
[1724183108978,0.00048107,59632.0,59631.0,1.67377067]
[1724183109646,0.11388107,59632.0,59631.0,1.33837467]
[1724183109853,0.12943396,59632.0,59631.0,0.91627785]
[1724183110062,0.20218107,59632.0,59631.0,0.86649]
[1724183110273,0.21773518,59632.0,59631.0,0.86649]
[1724183110783,0.21773518,59632.0,59631.0,0.195698]
[1724183112295,0.21773518,59632.0,59631.0,0.58088128]
[1724183112498,0.21773518,59632.0,59631.0,0.531094]
[1724183114139,0.21773549,59632.0,59631.0,0.531094]
[1724183114562,0.20218107,59632.0,59631.0,0.531094]
[1724183114775,0.21773549,59632.0,59631.0,0.531094]
[1724183115533,0.21773549,59632.0,59631.0,0.86649]
[1724183115732,0.21773549,59632.0,59631.0,0.91627743]
[1724183116351,0.10433549,59632.0,59631.0,0.91627743]
[1724183116555,0.01603549,59632.0,59631.0,1.27656715]
[1724183116754,0.01603549,59632.0,59631.0,1.64883956]
[1724183116951,0.01603549,59632.0,59631.0,1.67373328]
[1724183117201,0.00048107,59632.0,59631.0,1.57415841]
[1724183117543,0.00130307,59632.0,59631.0,1.57414081]
[1724183117950,0.00130307,59632.0,59631.0,1.67367788]
[1724183118156,0.01685618,59632.0,59631.0,1.57414081]
[1724183118360,0.01685618,59632.0,59631.0,1.6488036]
[1724183118771,0.00130307,59632.0,59631.0,1.67367788]
[1724183118987,0.00130307,59632.0,59631.0,1.87147788]
[1724183119191,0.00130307,59632.0,59631.0,1.89635804]
[1724183120327,0.09512,59638.0,59631.0,1.89635804]
[1724183120328,0.00567778,59652.0,59636.0,0.1044]
[1724183120590,0.00567778,59652.0,59631.0,0.86206804]
[1724183120591,0.00567778,59652.0,59647.0,0.55273546]
[1724183120797,0.00567778,59652.0,59647.0,1.38950409]
[1724183120970,0.00567778,59652.0,59649.0,0.838235]
[1724183121571,0.00567778,59652.0,59649.0,0.88795516]
[1724183121781,0.00567778,59652.0,59649.0,0.838235]
[1724183122193,0.1084,59650.0,59649.0,0.502941]
[1724183122398,0.1084,59650.0,59649.0,0.516941]
[1724183122847,0.12394855,59650.0,59647.0,0.167651]
[1724183123036,0.01554881,59649.0,59646.0,0.167655]
[1724183123235,0.01554881,59648.0,59647.0,0.167652]
[1724183123644,0.01554881,59648.0,59645.0,0.335314]
[1724183124004,0.01554881,59648.0,59643.0,0.335326]
[1724183124005,0.01554881,59647.0,59643.0,0.335326]
[1724183124122,0.01554881,59647.0,59646.0,0.167655]
[1724183124960,0.01554881,59647.0,59644.0,0.167658]
[1724183125344,0.01554881,59647.0,59643.0,0.335326]
[1724183125345,0.01554881,59647.0,59646.0,0.028]
[1724183126061,0.01554881,59647.0,59646.0,0.195655]
[1724183126263,0.01555065,59647.0,59646.0,0.014]
[1724183126466,0.01555065,59647.0,59646.0,0.607866]
[1724183126673,0.0008,59650.0,59649.0,0.502941]
[1724183126905,0.0008,59650.0,59649.0,1.173529]
[1724183127967,0.0008,59650.0,59649.0,1.532823]
[1724183128176,0.0008,59650.0,59649.0,2.0177368]
[1724183128382,0.0008,59650.0,59649.0,2.05136284]
[1724183128606,0.0008,59650.0,59649.0,2.06536284]
[1724183128811,0.0008,59650.0,59649.0,2.27216284]
[1724183129015,0.0008,59650.0,59649.0,2.36948245]
[1724183129225,0.0008,59650.0,59649.0,2.27016284]
[1724183129434,0.0008,59650.0,59649.0,2.35548245]
[1724183129624,0.0008,59650.0,59649.0,2.24216284]
[1724183130065,0.0008,59650.0,59649.0,2.380046]
[1724183130276,0.0008,59650.0,59649.0,2.37997781]
[1724183130486,0.00567778,59652.0,59651.0,1.657413]
[1724183130710,0.00567778,59652.0,59651.0,2.54386931]
[1724183130913,0.00567778,59652.0,59651.0,1.85370968]
[1724183131122,0.00567778,59652.0,59651.0,1.44413]
[1724183131330,0.00567778,59652.0,59651.0,1.50186805]
[1724183131551,0.00567778,59652.0,59651.0,1.45235]
[1724183131757,0.00567778,59652.0,59651.0,1.788633]
[1724183131974,0.00567778,59652.0,59651.0,1.787633]
[1724183132179,0.00567778,59652.0,59651.0,1.767993]
[1724183132404,0.00567778,59652.0,59651.0,1.754993]
[1724183132611,0.00567778,59652.0,59651.0,2.8023008]
[1724183132814,0.00567778,59652.0,59651.0,2.90335727]
[1724183133020,0.00567778,59652.0,59651.0,2.92812069]
[1724183133279,0.00567778,59652.0,59651.0,2.9192496]
[1724183133480,0.00567778,59652.0,59651.0,2.91924524]
[1724183133892,0.00567778,59652.0,59651.0,2.91524524]
[1724183134102,0.00567778,59652.0,59651.0,2.57996224]
[1724183134432,0.00567778,59652.0,59651.0,2.56596224]
[1724183134636,0.00567778,59652.0,59651.0,2.4830178]
[1724183134838,0.00567778,59652.0,59651.0,2.58194893]
[1724183135249,0.00567778,59652.0,59651.0,2.56511282]
[1724183135650,0.00567778,59652.0,59651.0,2.16830682]
[1724183135870,0.00822,59662.0,59661.0,0.838067]
[1724183137251,0.00822,59662.0,59661.0,0.852067]
[1724183137484,0.20902,59662.0,59661.0,0.51684]
[1724183137902,0.20902,59662.0,59661.0,0.53084]
[1724183138111,0.20902,59662.0,59661.0,0.195613]
[1724183139356,0.20902,59662.0,59661.0,0.53084]
[1724183139600,0.20902,59662.0,59661.0,0.028]
[1724183140038,0.23098534,59662.0,59661.0,0.028]
[1724183140247,0.22456723,59662.0,59661.0,0.028]
[1724183140669,0.22456723,59662.0,59661.0,0.014]
[1724183140921,0.22456723,59662.0,59661.0,0.028]
[1724183141129,0.22456723,59662.0,59661.0,0.014]
[1724183141346,0.22456723,59662.0,59650.0,0.4771]
[1724183141563,0.23254006,59662.0,59661.0,0.014]
[1724183141771,0.22456751,59662.0,59656.0,0.33525]
[1724183141971,0.01554751,59661.0,59658.0,0.167621]
[1724183142172,0.20902,59662.0,59658.0,0.167621]
[1724183142381,0.1948,59660.0,59654.0,0.167631]
[1724183142591,0.1948,59660.0,59650.0,0.4780042]
[1724183142592,0.1117,59659.0,59653.0,0.167635]
[1724183143012,0.13525087,59659.0,59652.0,0.167637]
[1724183143222,0.13525087,59659.0,59658.0,0.014]
[1724183143438,0.00011,59666.0,59658.0,0.014]
[1724183143439,0.49229154,59673.0,59661.0,0.001]
[1724183143624,0.335183,59669.0,59661.0,0.001]
[1724183143827,0.18314358,59668.0,59661.0,0.003]
[1724183144033,0.167592,59669.0,59662.0,0.001]
[1724183144650,0.167586,59671.0,59663.0,0.003]
[1724183144853,0.33514,59677.0,59666.0,0.003]
[1724183145062,0.167575,59675.0,59667.0,0.001]
[1724183145267,0.002,59669.0,59667.0,0.002]
[1724183145473,0.167572,59676.0,59667.0,0.003]
[1724183145679,0.167575,59675.0,59667.0,0.001]
[1724183145881,0.003,59671.0,59667.0,0.001]
[1724183146299,0.1934,59670.0,59667.0,0.003]
[1724183146922,0.1934,59670.0,59669.0,0.003]
[1724183147344,0.1934,59670.0,59669.0,0.001]
[1724183147552,0.1934,59670.0,59669.0,0.003]
[1724183147754,0.1934,59670.0,59669.0,0.001]
[1724183147961,0.1934,59670.0,59669.0,0.005]
[1724183148370,0.1934,59670.0,59667.0,0.007]
[1724183148777,0.1934,59670.0,59669.0,0.011]
[1724183149119,0.1934,59670.0,59669.0,0.023]
[1724183149573,0.1934,59670.0,59669.0,0.013]
[1724183149741,0.1934,59670.0,59669.0,0.011]
[1724183150774,0.1934,59670.0,59669.0,0.023]
[1724183151005,0.21274,59670.0,59669.0,0.023]
[1724183151593,0.380328,59670.0,59669.0,0.023]
[1724183151745,0.186928,59670.0,59669.0,0.023]
[1724183151950,0.15414,59670.0,59669.0,0.023]
[1724183152426,0.23874,59670.0,59669.0,0.023]